[Event "Liberia Championship 2023"]
[Site "Monrovia"]
[Date "2024.01.16"]
[Round "3.3"]
[White "Foday W. Kondoh"]
[Black "Joel O. Ebiekuta"]
[Result "0-1"]
[ECO "B07"]
[WhiteElo "1785"]
[BlackElo "1875"]
[Annotator "NA RC"]
[PlyCount "160"]
[EventDate "2024.01.16"]
[EventType "swiss"]
[EventCountry "LBR"]
[SourceTitle "playchess.com"]
[Source "ChessBase"]
[SourceQuality "1"]
[TimeControl "40/5400+30:1800+30"]

1. e4 {[%emt 0:00:08]} d6 {[%emt 0:14:42]} 2. d4 {[%emt 0:01:17]} Nf6 {[%emt 0:00:29]} 3. Nc3 {[%emt 0:00:17]} g6 {[%emt 0:00:48]} 4. Bc4 {[%emt 0:01:53]} Bg7 {[%emt 0:00:14]} 5. Nge2 {[%emt 0:01:11]} O-O {[%emt 0:00:22]} 6. Ng3 {[%emt 0:05:19]} c6 {[%emt 0:00:17]} 7. O-O {[%emt 0:02:26]} Nxe4 {[%emt 0:00:32]} 8. Ncxe4 {[%emt 0:04:13]} d5 {[%emt 0:00:01]} 9. Bb3 {[%emt 0:00:18]} dxe4 {[%emt 0:01:03]} 10. c3 {[%emt 0:00:10]} Bf5 {[%emt 0:01:00]} 11. Nxf5 {[%emt 0:05:05]} gxf5 {[%emt 0:00:15]} 12. Qh5 {[%emt 0:00:52]} e6 {[%emt 0:00:45]} 13. f3 {[%emt 0:00:43]} exf3 {[%emt 0:03:19]} 14. Rxf3 {[%emt 0:00:29]} Qf6 {[%emt 0:00:04]} 15. Rh3 {[%emt 0:03:12]} Qg6 {[%emt 0:00:54]} 16. Qf3 {[%emt 0:03:15]} Qg4 {[%emt 0:04:49]} 17. Qf2 {[%emt 0:03:28]} Kh8 {[%emt 0:02:15]} 18. Bf4 {[%emt 0:04:02]} Rg8 {[%emt 0:02:13]} 19. Kh1 {[%emt 0:04:16]} Bf6 {[%emt 0:06:24]} 20. Rg3 {[%emt 0:04:01]} Qh4 {[%emt 0:01:18]} 21. Rxg8+ {[%emt 0:04:17]} Kxg8 {[%emt 0:02:40]} 22. Qe3 {[%emt 0:00:19]} Nd7 {[%emt 0:00:07]} 23. Rf1 {[%emt 0:01:12]} Kh8 {[%emt 0:00:11]} 24. Rf3 {[%emt 0:07:15]} Rg8 {[%emt 0:06:09]} 25. Rh3 {[%emt 0:18:19]} Qg4 {[%emt 0:00:53]} 26. Rg3 {[%emt 0:01:46]} Qh4 {[%emt 0:03:31]} 27. Rxg8+ {[%emt 0:04:31]} Kxg8 {[%emt 0:00:23]} 28. Qg3+ {[%emt 0:06:02]} Qxg3 {[%emt 0:00:17]} 29. Bxg3 {[%emt 0:00:09]} Bg5 {[%emt 0:00:43]} 30. c4 {[%emt 0:01:25]} Bc1 {[%emt 0:03:29]} 31. d5 {[%emt 0:00:11]} f4 {[%emt 0:00:34]} 32. Bf2 {[%emt 0:00:04]} Bxb2 {[%emt 0:02:43]} 33. dxc6 {[%emt 0:00:59]} bxc6 {[%emt 0:00:04]} 34. Bxa7 {[%emt 0:00:51]} Kf8 {[%emt 0:00:56]} 35. Ba4 {[%emt 0:06:26]} Ne5 {[%emt 0:00:24]} 36. Bb3 {[%emt 0:03:00]} Ba3 {[%emt 0:01:34]} 37. Bb8 {[%emt 0:03:21]} f3 {[%emt 0:02:38]} 38. gxf3 {[%emt 0:01:37]} Nxf3 {[%emt 0:00:01]} 39. Ba4 {[%emt 0:00:13]} Nd4 {[%emt 0:00:40]} 40. Be5 {[%emt 0:00:55]} c5 {[%emt 0:00:59]} 41. Bd1 {[%emt 0:30:53]} Ke7 {[%emt 0:30:47]} 42. Kg2 {[%emt 0:00:38]} f6 {[%emt 0:01:36]} 43. Bf4 {[%emt 0:00:49]} e5 {[%emt 0:00:00]} 44. Be3 {[%emt 0:00:00]} Ke6 {[%emt 0:00:00]} 45. Kf2 {[%emt 0:00:00]} f5 {[%emt 0:00:00]} 46. Bd2 {[%emt 0:00:00]} Bb4 {[%emt 0:00:00]} 47. Bh6 {[%emt 0:00:00]} Nc6 {[%emt 0:00:00]} 48. Ba4 {[%emt 0:00:00]} Na5 {[%emt 0:00:00]} 49. Bb5 {[%emt 0:00:00]} Nb7 {[%emt 0:00:00]} 50. Bc6 {[%emt 0:00:00]} Nd6 {[%emt 0:00:00]} 51. Bd5+ {[%emt 0:00:00]} Kf6 {[%emt 0:00:00]} 52. a4 {[%emt 0:00:00]} Nc8 {[%emt 0:00:00]} 53. Bc6 {[%emt 0:00:00]} Nb6 {[%emt 0:00:00]} 54. Bb5 {[%emt 0:00:00]} Ke6 {[%emt 0:00:00]} 55. Bf8 {[%emt 0:00:00]} Nd7 {[%emt 0:00:00]} 56. Bg7 {[%emt 0:00:00]} Nf6 {[%emt 0:00:00]} 57. Ke2 {[%emt 0:00:00]} e4 {[%emt 0:00:00]} 58. Bh6 {[%emt 0:00:00]} Ng4 {[%emt 0:00:00]} 59. Bf4 {[%emt 0:00:00]} Ne5 {[%emt 0:00:00]} 60. Ba6 {[%emt 0:00:00]} Nd3 {[%emt 0:00:00]} 61. Bc8+ {[%emt 0:00:00]} Kf6 {[%emt 0:00:00]} 62. Bc7 {[%emt 0:00:00]} Nc1+ {[%emt 0:00:00]} 63. Ke3 {[%emt 0:00:00]} Nb3 {[%emt 0:00:00]} 64. Bd8+ {[%emt 0:00:00]} Kg6 {[%emt 0:00:00]} 65. h4 {[%emt 0:00:00]} h5 {[%emt 0:00:00]} 66. Bd7 {[%emt 0:00:49]} Bd2+ {[%emt 0:00:00]} 67. Ke2 {[%emt 0:00:17]} f4 {[%emt 0:00:00]} 68. Be8+ {[%emt 0:00:16]} Kf5 {[%emt 0:00:08]} 69. Bxh5 {[%emt 0:00:35]} Bc3 {[%emt 0:00:16]} 70. Kd1 {[%emt 0:00:53]} Na5 {[%emt 0:00:36]} 71. Bf7 {[%emt 0:01:10]} f3 {[%emt 0:00:30]} 72. Bg5 {[%emt 0:04:14]} Nc6 {[%emt 0:05:31]} 73. Be3 {[%emt 0:02:15]} Bd4 {[%emt 0:00:38]} 74. Bxd4 {[%emt 0:03:08]} Nxd4 {[%emt 0:01:26]} 75. Bh5 {[%emt 0:00:45]} Kf4 {[%emt 0:01:17]} 76. a5 {[%emt 0:00:58]} e3 {[%emt 0:00:19]} 77. a6 {[%emt 0:00:26]} e2+ {[%emt 0:00:11]} 78. Kd2 {[%emt 0:00:15]} Nb3+ {[%emt 0:01:18]} 79. Ke1 {[%emt 0:00:12]} Nc1 {[%emt 0:00:58]} 80. Kd2 {[%emt 0:00:53]} Nd3 {[%emt 0:00:08]} 0-1

[Event "Liberia Championship 2023"]
[Site "Monrovia"]
[Date "2024.01.16"]
[Round "3.4"]
[White "John Jallah"]
[Black "Anthony Waylea, Jr."]
[Result "*"]
[ECO "C50"]
[WhiteElo "1761"]
[BlackElo "1939"]
[Annotator "NA RC"]
[PlyCount "131"]
[EventDate "2024.01.16"]
[EventType "swiss"]
[EventCountry "LBR"]
[SourceTitle "playchess.com"]
[Source "ChessBase"]
[SourceQuality "1"]
[TimeControl "40/5400+30:1800+30"]

1. e4 {[%emt 0:34:49]} Nc6 {[%emt 0:00:03]} 2. Nc3 {[%emt 0:00:51]} e5 {[%emt 0:00:21]} 3. Nf3 {[%emt 0:00:29]} Nf6 {[%emt 0:00:06]} 4. Bc4 {[%emt 0:00:54]} Bc5 {[%emt 0:00:17]} 5. h3 {[%emt 0:01:40]} d6 {[%emt 0:00:36]} 6. d3 {[%emt 0:00:22]} h6 {[%emt 0:00:23]} 7. a3 {[%emt 0:00:08]} a5 {[%emt 0:00:51]} 8. Qe2 {[%emt 0:00:33]} Qe7 {[%emt 0:01:25]} 9. O-O {[%emt 0:01:35]} O-O {[%emt 0:00:19]} 10. Nd5 {[%emt 0:01:48]} Qd8 {[%emt 0:05:38]} 11. c3 {[%emt 0:00:30]} Nxd5 {[%emt 0:04:20]} 12. Bxd5 {[%emt 0:00:20]} Ne7 {[%emt 0:00:19]} 13. Ba2 {[%emt 0:00:59]} Ng6 {[%emt 0:00:27]} 14. d4 {[%emt 0:01:24]} Ba7 {[%emt 0:00:39]} 15. Rd1 {[%emt 0:51:38]} Qf6 {[%emt 0:00:19]} 16. Be3 {[%emt 0:00:00]} Be6 {[%emt 0:01:10]} 17. dxe5 {[%emt 0:00:00]} dxe5 {[%emt 0:00:46]} 18. Qb5 {[%emt 0:00:00]} Bxe3 {[%emt 0:01:47]} 19. fxe3 {[%emt 0:00:00]} Bxh3 {[%emt 0:00:53]} 20. Rf1 {[%emt 0:00:00]} Bc8 {[%emt 0:08:11]} 21. Rf2 {[%emt 0:00:00]} Qe7 {[%emt 0:01:24]} 22. b4 {[%emt 0:00:00]} c6 {[%emt 0:01:14]} 23. Qe2 {[%emt 0:00:00]} Be6 {[%emt 0:00:32]} 24. Qb2 {[%emt 0:00:00]} Bxa2 {[%emt 0:01:17]} 25. Qxa2 {[%emt 0:00:00]} Rad8 {[%emt 0:02:58]} 26. Raf1 {[%emt 0:00:00]} Rd3 {[%emt 0:03:30]} 27. Qc4 {[%emt 0:00:00]} Rd6 {[%emt 0:06:17]} 28. a4 {[%emt 0:00:00]} Qe6 {[%emt 0:01:04]} 29. Qxe6 {[%emt 0:00:00]} Rxe6 {[%emt 0:00:05]} 30. Nd2 {[%emt 0:00:00]} Re7 {[%emt 0:00:21]} 31. Nc4 {[%emt 0:00:00]} axb4 {[%emt 0:00:19]} 32. cxb4 {[%emt 0:00:00]} Rd8 {[%emt 0:00:47]} 33. Rb2 {[%emt 0:00:00]} f6 {[%emt 0:03:17]} 34. Rc1 {[%emt 0:00:00]} Nf8 {[%emt 0:00:16]} 35. Na5 {[%emt 0:00:00]} Ne6 {[%emt 0:01:36]} 36. b5 {[%emt 0:00:00]} Ra8 {[%emt 0:05:37]} 37. bxc6 {[%emt 0:00:00]} bxc6 {[%emt 0:00:10]} 38. Nxc6 {[%emt 0:00:00]} Rc7 {[%emt 0:00:07]} 39. Rc4 {[%emt 0:00:00]} Nd8 {[%emt 0:50:19]} 40. Nxe5 {[%emt 0:12:30]} Rxc4 {[%emt 0:00:00]} 41. Nxc4 {[%emt 0:00:00]} Rxa4 {[%emt 0:00:00]} 42. Rb8 {[%emt 0:00:00]} Rxc4 {[%emt 0:00:00]} 43. Rxd8+ {[%emt 0:00:00]} Kf7 {[%emt 0:00:00]} 44. Rd4 {[%emt 0:00:00]} Rc2 {[%emt 0:00:00]} 45. Kh2 {[%emt 0:00:00]} Rc3 {[%emt 0:00:00]} 46. Kg3 {[%emt 0:00:00]} Rxe3+ {[%emt 0:00:00]} 47. Kf2 {[%emt 0:00:00]} Ra3 {[%emt 0:00:00]} 48. Rd5 {[%emt 0:00:00]} Ke6 {[%emt 0:00:00]} 49. Rb5 {[%emt 0:00:00]} Rd3 {[%emt 0:35:00]} 50. Ra5 {[%emt 0:35:00]} g6 {[%emt 0:00:00]} 51. Rb5 {[%emt 0:00:00]} h5 {[%emt 0:00:00]} 52. g3 {[%emt 0:00:00]} h4 {[%emt 0:00:00]} 53. gxh4 {[%emt 0:00:00]} Rh3 {[%emt 0:00:00]} 54. Ra5 {[%emt 0:00:00]} Rxh4 {[%emt 0:00:00]} 55. Ke3 {[%emt 0:00:00]} Rh3+ {[%emt 0:00:00]} 56. Kf2 {[%emt 0:00:00]} Rh5 {[%emt 0:00:00]} 57. Ra8 {[%emt 0:00:00]} Ke5 {[%emt 0:00:00]} 58. Re8+ {[%emt 0:00:00]} Kf4 {[%emt 0:00:00]} 59. Rf8 {[%emt 0:00:00]} Kxe4 {[%emt 0:00:00]} 60. Rxf6 {[%emt 0:00:00]} Rf5+ {[%emt 0:00:00]} 61. Rxf5 {[%emt 0:00:00]} Kxf5 {[%emt 0:00:00]} 62. Kf3 {[%emt 0:00:00]} Ke5 {[%emt 0:00:00]} 63. Kg4 {[%emt 0:00:00]} Ke6 {[%emt 0:00:00]} 64. Kg5 {[%emt 0:00:00]} Kf7 {[%emt 0:00:00]} 65. Kg4 {[%emt 0:00:00]} Kf6 {[%emt 0:00:00]} 66. Kf4 {[%emt 0:08:00]} *

[Event "Liberia Championship 2023"]
[Site "Monrovia"]
[Date "2024.01.16"]
[Round "3.5"]
[White "Thomas, Saah"]
[Black "Jacob, Jallah"]
[Result "*"]
[ECO "B12"]
[WhiteElo "1889"]
[BlackElo "1781"]
[Annotator "NA COMBH RC"]
[PlyCount "131"]
[EventDate "2024.01.16"]
[EventType "swiss"]
[EventCountry "LBR"]
[SourceTitle "playchess.com"]
[Source "ChessBase"]
[SourceQuality "1"]
[TimeControl "40/5400+30:1800+30"]

1. e4 {[%emt 0:07:52]} c6 {[%emt 0:11:49]} 2. d4 {[%emt 0:00:21]} d5 {[%emt 0:00:01]} 3. Bd3 {[%emt 0:01:08]} dxe4 {[%emt 0:00:10]} 4. Bxe4 {[%emt 0:00:03]} Nf6 {[%emt 0:00:12]} 5. Bf3 {[%emt 0:00:02]} Bf5 {[%emt 0:01:44]} 6. Nc3 {[%emt 0:00:31]} h6 {[%emt 0:01:00]} 7. h4 {[%emt 0:01:08]} Qd7 {[%emt 0:03:09]} 8. Bf4 {[%emt 0:01:21]} Na6 {[%emt 0:00:59]} 9. a3 {[%emt 0:00:14]} Nc7 {[%emt 0:05:35]} 10. Qd2 {[%emt 0:02:54]} e6 {[%emt 0:02:13]} 11. O-O-O {[%emt 0:00:35]} Ncd5 {[%emt 0:01:02]} 12. Nge2 {[%emt 0:00:50]} Bd6 {[%emt 0:01:59]} 13. Be5 {[%emt 0:01:34]} b5 {[%emt 0:01:39]} 14. Nxd5 {[%emt 0:00:50]} cxd5 {[%emt 0:02:34]} 15. Qa5 {[%emt 0:01:51]} a6 {[%emt 0:14:16]} 16. Nc3 {[%emt 0:00:22]} O-O {[%emt 0:01:12]} 17. Rhg1 {[%emt 0:04:32]} Bxe5 {[%emt 0:49:26]} 18. dxe5 {[%emt 0:00:12]} Ng4 {[%emt 0:00:00]} 19. Bxg4 {[%emt 0:00:03]} Bxg4 {[%emt 0:00:00]} 20. Rd4 {[%emt 0:00:07]} Bf5 {[%emt 0:00:00]} 21. g4 {[%emt 0:00:03]} Bh7 {[%emt 0:00:00]} 22. Nd1 {[%emt 0:00:54]} Qe7 {[%emt 0:00:00]} 23. g5 {[%emt 0:00:20]} h5 {[%emt 0:00:00]} 24. Ne3 {[%emt 0:00:43]} Qc5 {[%emt 0:00:00]} 25. Qd2 {[%emt 0:00:07]} a5 {[%emt 0:00:00]} 26. f4 {[%emt 0:00:46]} b4 {[%emt 0:00:00]} 27. a4 {[%emt 0:00:20]} Rac8 {[%emt 0:00:00]} 28. f5 {[%emt 0:02:34]} exf5 {[%emt 0:00:00]} 29. Rxd5 {[%emt 0:01:13]} Qc6 {[%emt 0:00:00]} 30. b3 {[%emt 0:00:38]} Qb6 {[%emt 0:00:00]} 31. Rd1 {[%emt 0:00:25]} Rc3 {[%emt 0:00:00]} 32. Nc4 {[%emt 0:00:27]} Qc7 {[%emt 0:00:00]} 33. Qf4 {[%emt 0:01:05]} Rc8 {[%emt 0:00:00]} 34. Kb2 {[%emt 0:00:16]} Bg6 {[%emt 0:00:00]} 35. R1d2 {[%emt 0:00:28]} Kh7 {[%emt 0:00:00]} 36. Rxa5 {[%emt 0:00:52]} Rxc4 {[%emt 0:00:00]} 37. Qxc4 {[%emt 0:00:15]} Qxc4 {[%emt 0:00:00]} 38. bxc4 {[%emt 0:00:13]} Rxc4 {[%emt 0:00:00]} 39. Kb3 {[%emt 0:00:15]} Rxh4 {[%emt 0:00:00]} 40. Rb5 {[%emt 0:00:00]} f4 {[%emt 0:00:00]} 41. a5 {[%emt 0:01:16]} f3 {[%emt 0:00:00]} 42. a6 {[%emt 0:00:41]} Rg4 {[%emt 0:00:00]} 43. Rf2 {[%emt 0:01:19]} Be4 {[%emt 0:00:00]} 44. Rxb4 {[%emt 0:00:45]} Bc6 {[%emt 0:00:00]} 45. Rb6 {[%emt 0:01:57]} Bd5+ {[%emt 0:00:00]} 46. Kc3 {[%emt 0:01:34]} Rg2 {[%emt 0:00:00]} 47. g6+ {[%emt 0:01:01]} fxg6 {[%emt 0:00:00]} 48. Rd2 {[%emt 0:01:40]} f2 {[%emt 0:00:44]} 49. Rb1 {[%emt 0:00:53]} Bc6 {[%emt 0:03:17]} 50. Rf1 {[%emt 0:01:52]} Rg5 {[%emt 0:01:30]} 51. Kd4 {[%emt 0:00:46]} Bb5 {[%emt 0:00:35]} 52. Rfxf2 {[%emt 0:00:48]} Bxa6 {[%emt 0:00:32]} 53. e6 {[%emt 0:00:56]} Bb5 {[%emt 0:01:34]} 54. e7 {[%emt 0:01:07]} h4 {[%emt 0:00:38]} 55. Rde2 {[%emt 0:01:17]} Kh6 {[%emt 0:02:18]} 56. Rf8 {[%emt 0:01:07]} Rg4+ {[%emt 0:01:54]} 57. Re4 {[%emt 0:00:32]} Kg5 {[%emt 0:01:10]} 58. Rxg4+ {[%emt 0:00:46]} Kxg4 {[%emt 0:00:37]} 59. c4 {[%emt 0:00:35]} Ba4 {[%emt 0:00:42]} 60. c5 {[%emt 0:00:36]} h3 {[%emt 0:00:55]} 61. Ke5 {[%emt 0:00:32]} h2 {[%emt 0:02:11]} 62. Rh8 {[%emt 0:00:33]} Kg3 {[%emt 0:00:39]} 63. Kd6 {[%emt 0:00:37]} g5 {[%emt 0:02:56]} 64. c6 {[%emt 0:00:38]} g4 {[%emt 0:01:12]} 65. e8=Q {[%emt 0:00:33]} Bd1 {[%emt 0:01:14] #5} 66. Qe1+ {[%emt 0:00:42]} *

[Event "Liberia Championship 2023"]
[Site "Monrovia"]
[Date "2024.01.16"]
[Round "3.6"]
[White "Harold Evans"]
[Black "James, Tondo"]
[Result "0-1"]
[ECO "B21"]
[WhiteElo "1735"]
[BlackElo "1837"]
[Annotator "NA RC"]
[PlyCount "127"]
[EventDate "2024.01.16"]
[EventType "swiss"]
[EventCountry "LBR"]
[SourceTitle "playchess.com"]
[Source "ChessBase"]
[SourceQuality "1"]
[TimeControl "40/5400+30:1800+30"]

1. e4 {[%emt 0:10:04]} c5 {[%emt 0:01:03]} 2. d4 {[%emt 0:00:20]} cxd4 {[%emt 0:00:02]} 3. Qxd4 {[%emt 0:00:25]} Nc6 {[%emt 0:00:00]} 4. Qe3 Nf6 {[%emt 1:31:25]} 5. Nc3 {[%emt 1:22:11]} d5 {[%emt 0:00:30]} 6. exd5 {[%emt 0:00:00]} Nxd5 {[%emt 0:00:30]} 7. Nxd5 {[%emt 0:00:00]} Qxd5 {[%emt 0:00:30]} 8. Nf3 {[%emt 0:01:30]} Bf5 {[%emt 0:00:00]} 9. c3 e5 {[%emt 0:00:00]} 10. Be2 Bc5 {[%emt 0:00:00]} 11. Qg5 {[%emt 0:00:00]} Bg6 {[%emt 0:00:00]} 12. O-O {[%emt 0:00:00]} f6 {[%emt 0:00:00]} 13. Qh4 Qe4 {[%emt 0:03:00]} 14. Qxe4 {[%emt 0:00:00]} Bxe4 {[%emt 0:00:00]} 15. Nd2 {[%emt 0:03:30]} Bc2 {[%emt 0:01:00]} 16. Bb5 {[%emt 0:00:00]} O-O-O {[%emt 0:00:30]} 17. Bxc6 {[%emt 0:00:00]} bxc6 {[%emt 0:00:30]} 18. Re1 {[%emt 0:01:30]} Rd7 {[%emt 0:00:30]} 19. Nf1 {[%emt 0:00:30]} Rhd8 {[%emt 0:00:30]} 20. Be3 {[%emt 0:00:30]} Bf8 {[%emt 0:00:30]} 21. Rac1 {[%emt 0:00:30]} Bg6 {[%emt 0:00:00]} 22. f3 Bf7 {[%emt 0:01:00]} 23. a3 {[%emt 0:01:00]} Kb7 {[%emt 0:00:00]} 24. Bf2 {[%emt 0:00:00]} Bb3 {[%emt 0:00:00]} 25. Be3 {[%emt 0:01:00]} a5 {[%emt 0:00:00]} 26. Ng3 {[%emt 0:00:00]} c5 {[%emt 0:00:00]} 27. Re2 {[%emt 0:00:00]} Kc6 {[%emt 0:00:00]} 28. Nf1 Rd3 {[%emt 0:00:00]} 29. Rd2 {[%emt 0:00:00]} c4 {[%emt 0:00:00]} 30. Re2 g5 {[%emt 0:00:00]} 31. Kf2 Bd1 {[%emt 0:00:00]} 32. Rd2 Ba4 {[%emt 0:00:00]} 33. Ke2 Bb5 {[%emt 0:00:00]} 34. Rdd1 {[%emt 0:00:00]} h6 {[%emt 0:00:00]} 35. g4 Rxd1 {[%emt 0:06:30]} 36. Rxd1 {[%emt 0:00:00]} Rxd1 37. Kxd1 Kd5 {[%emt 0:00:00]} 38. Bb6 {[%emt 0:00:00]} a4 {[%emt 0:00:00]} 39. Ne3+ {[%emt 0:00:00]} Ke6 {[%emt 0:00:00]} 40. Ke2 {[%emt 0:00:00]} h5 {[%emt 0:00:00]} 41. h3 {[%emt 0:00:00]} hxg4 {[%emt 0:00:00]} 42. hxg4 {[%emt 0:00:00]} Bc6 {[%emt 0:00:00]} 43. Nf5 {[%emt 0:00:00]} Bd7 {[%emt 0:00:00]} 44. Ba5 {[%emt 0:00:00]} Bc5 {[%emt 0:00:00]} 45. Bb4 {[%emt 0:00:00]} Bg1 {[%emt 0:01:37]} 46. Ba5 {[%emt 0:00:00]} Bh2 {[%emt 0:02:19]} 47. Bb6 {[%emt 0:00:00]} Bf4 {[%emt 0:02:39]} 48. Be3 {[%emt 0:00:00]} Kd5 {[%emt 0:01:42]} 49. Ng7 {[%emt 0:00:00]} e4 {[%emt 0:02:08]} 50. Nh5 {[%emt 0:00:00]} exf3+ {[%emt 0:00:44]} 51. Kxf3 {[%emt 0:00:00]} Bxg4+ {[%emt 0:04:00]} 52. Kxg4 {[%emt 0:00:00]} Bxe3 {[%emt 0:00:33]} 53. Nxf6+ {[%emt 0:00:00]} Kc6 {[%emt 0:09:52]} 54. Ne4 Bc1 {[%emt 0:02:19]} 55. Nxg5 Bxb2 {[%emt 0:12:07]} 56. Ne4 {[%emt 0:00:00]} Kd5 {[%emt 0:00:00]} 57. Nd2 Bxa3 {[%emt 0:00:00]} 58. Kf3 {[%emt 0:00:00]} Bc1 {[%emt 0:00:00]} 59. Nb1 {[%emt 0:00:00]} a3 {[%emt 0:00:00]} 60. Nxa3 {[%emt 0:00:00]} Bxa3 {[%emt 0:00:00]} 61. Ke2 {[%emt 0:00:00]} Ke4 {[%emt 0:00:00]} 62. Kd2 {[%emt 0:00:00]} Kf3 {[%emt 0:00:00]} 63. Kd1 {[%emt 0:00:00]} Ke3 {[%emt 0:03:55]} 64. Kc2 {[%emt 0:49:30]} 0-1

[Event "Liberia Championship 2023"]
[Site "Monrovia"]
[Date "2024.01.16"]
[Round "3.7"]
[White "Daniel Kolliemelen"]
[Black "Alfred J. Kollie"]
[Result "1-0"]
[ECO "D00"]
[WhiteElo "1809"]
[BlackElo "1612"]
[Annotator "NA COMBH"]
[PlyCount "72"]
[EventDate "2024.01.16"]
[EventType "swiss"]
[EventCountry "LBR"]
[SourceTitle "playchess.com"]
[Source "ChessBase"]
[SourceQuality "1"]
[TimeControl "40/5400+30:1800+30"]

1. d4 {[%emt 0:00:07]} d5 {[%emt 0:37:25]} 2. e3 {[%emt 0:00:33]} Bf5 {[%emt 0:00:08]} 3. Bd3 {[%emt 0:00:14]} Bg6 {[%emt 0:00:06]} 4. f4 {[%emt 0:00:46]} e6 {[%emt 0:00:07]} 5. Nf3 {[%emt 0:00:45]} c5 {[%emt 0:00:07]} 6. c3 {[%emt 0:00:32]} Nc6 {[%emt 0:00:03]} 7. O-O {[%emt 0:00:31]} Nf6 {[%emt 0:00:03]} 8. Ne5 {[%emt 0:00:20]} Bxd3 {[%emt 0:00:02]} 9. Nxd3 {[%emt 0:01:35]} c4 {[%emt 0:00:18]} 10. Nf2 {[%emt 1:30:07]} Bd6 {[%emt 0:57:11]} 11. Nd2 {[%emt 0:00:30]} O-O {[%emt 0:00:30]} 12. Qf3 {[%emt 0:00:00]} Bc7 {[%emt 0:00:00]} 13. e4 {[%emt 0:00:00]} g6 {[%emt 0:00:00]} 14. e5 {[%emt 0:00:00]} Nh5 {[%emt 0:00:00]} 15. g4 {[%emt 0:02:00]} Ng7 {[%emt 0:00:00]} 16. g5 {[%emt 0:00:00]} Qc8 {[%emt 0:02:30]} 17. Re1 {[%emt 0:01:00]} Bd8 {[%emt 0:00:00]} 18. Nf1 {[%emt 0:00:00]} Nf5 {[%emt 0:00:00]} 19. Ne3 {[%emt 0:00:00]} Nce7 {[%emt 0:00:00]} 20. Nfg4 {[%emt 0:00:00]} Nxe3 {[%emt 0:00:00]} 21. Nf6+ {[%emt 0:00:00]} Kg7 {[%emt 0:00:00]} 22. Qh3 {[%emt 0:00:00]} h5 {[%emt 0:00:00]} 23. gxh6+ {[%emt 0:00:00]} Kh8 {[%emt 0:00:00]} 24. Bxe3 {[%emt 0:00:00]} Nf5 {[%emt 0:04:00]} 25. Ng4 {[%emt 0:04:00]} Bh4 {[%emt 0:00:00]} 26. Bf2 {[%emt 0:00:30]} Be7 {[%emt 0:01:00]} 27. Kf1 {[%emt 0:00:00]} b5 {[%emt 0:00:00]} 28. Ne3 {[%emt 0:00:00]} Nxe3+ {[%emt 0:00:00]} 29. Rxe3 {[%emt 0:01:30]} Kh7 {[%emt 0:01:30]} 30. Qg4 {[%emt 0:00:30]} Rg8 {[%emt 0:00:30]} 31. Rf3 {[%emt 0:00:00]} Qd8 {[%emt 0:00:00]} 32. h4 {[%emt 0:00:00]} a5 {[%emt 0:00:00]} 33. h5 g5 {[%emt 0:00:00]} 34. Rh3 {[%emt 0:00:00]} Bf8 {[%emt 0:00:00]} 35. Qf3 {[%emt 0:00:00]} f5 {[%emt 0:00:00]} 36. Be3 {[%emt 0:00:00]} Rh8 {[%emt 0:00:00]} 1-0

[Event "Liberia Championship 2023"]
[Site "Monrovia"]
[Date "2024.01.16"]
[Round "3.8"]
[White "Bobby Ballah"]
[Black "Miller Moore"]
[Result "1-0"]
[ECO "C42"]
[WhiteElo "1913"]
[BlackElo "1677"]
[Annotator "NA RC"]
[PlyCount "51"]
[EventDate "2024.01.16"]
[EventType "swiss"]
[EventCountry "LBR"]
[SourceTitle "playchess.com"]
[Source "ChessBase"]
[SourceQuality "1"]
[TimeControl "40/5400+30:1800+30"]

1. e4 {[%emt 0:00:30]} e5 {[%emt 0:39:43]} 2. Nf3 {[%emt 0:00:07]} Nf6 {[%emt 0:00:13]} 3. Nxe5 {[%emt 0:00:52]} Qe7 {[%emt 0:00:19]} 4. d4 {[%emt 0:00:24]} d6 {[%emt 0:00:12]} 5. Nf3 {[%emt 0:00:30]} Qxe4+ {[%emt 0:00:21]} 6. Be2 {[%emt 0:01:59]} Bf5 {[%emt 0:00:24]} 7. Na3 {[%emt 0:04:33]} d5 {[%emt 0:00:13]} 8. O-O {[%emt 0:00:42]} Bxa3 {[%emt 0:00:29]} 9. Bb5+ {[%emt 0:01:08]} c6 {[%emt 0:00:32]} 10. Re1 {[%emt 0:00:10]} Be7 {[%emt 0:00:53]} 11. Rxe4 {[%emt 0:00:44]} Nxe4 {[%emt 0:00:32]} 12. Bd3 {[%emt 0:00:12]} O-O {[%emt 0:52:39]} 13. Ne5 {[%emt 1:25:09]} f6 {[%emt 0:00:00]} 14. Nf3 {[%emt 0:00:00]} Bd6 {[%emt 0:00:00]} 15. Be3 {[%emt 0:00:00]} Bg4 {[%emt 0:00:00]} 16. c4 {[%emt 0:00:00]} f5 {[%emt 0:00:00]} 17. cxd5 {[%emt 0:00:00]} cxd5 {[%emt 0:00:00]} 18. Qb3 {[%emt 0:00:00]} Bxf3 {[%emt 0:00:00]} 19. Qxd5+ {[%emt 0:00:00]} Kh8 {[%emt 0:00:00]} 20. gxf3 {[%emt 0:00:00]} Rf6 {[%emt 0:00:00]} 21. fxe4 {[%emt 0:00:00]} Rg6+ {[%emt 0:00:00]} 22. Kf1 {[%emt 0:00:00]} Nc6 {[%emt 0:00:00]} 23. exf5 {[%emt 0:00:00]} Nb4 {[%emt 0:00:00]} 24. Qxb7 {[%emt 0:00:00]} Rb8 {[%emt 0:00:00]} 25. Rc1 {[%emt 0:00:00]} Nxd3 {[%emt 0:06:30]} 26. Qb5 {[%emt 0:06:30]} 1-0